[Event "GER-chT States Women 2022"]
[Site "Braunfels"]
[Date "2022.06.19"]
[Round "5.27"]
[White "Kohm, Vanessa"]
[Black "Moeller, Hannah"]
[Result "1-0"]
[ECO "E70"]
[WhiteElo "1772"]
[BlackElo "1833"]
[Annotator "NA RC"]
[PlyCount "69"]
[EventDate "2022.06.15"]
[EventType "swiss"]
[EventCountry "GER"]
[SourceTitle "playchess.com"]
[Source "ChessBase"]
[SourceQuality "1"]
[TimeControl "40/5400+30:1800+30"]

1. d4 {[%emt 0:00:03]} Nf6 {[%emt 0:00:03]} 2. c4 {[%emt 0:00:10]} g6 {[%emt 0:00:05]} 3. Nc3 {[%emt 0:00:06]} Bg7 {[%emt 0:00:04]} 4. e4 {[%emt 0:00:15]} d6 {[%emt 0:00:04]} 5. Bd3 {[%emt 0:01:53]} c6 {[%emt 0:00:30]} 6. Nge2 {[%emt 0:03:02]} Nbd7 {[%emt 0:00:17]} 7. O-O {[%emt 0:03:44]} O-O {[%emt 0:00:32]} 8. Bg5 {[%emt 0:02:24]} h6 {[%emt 0:00:38]} 9. Bd2 {[%emt 0:00:27]} e5 {[%emt 0:00:05]} 10. d5 {[%emt 0:00:21]} Nc5 {[%emt 0:00:16]} 11. Bc2 {[%emt 0:00:41]} cxd5 {[%emt 0:00:20]} 12. cxd5 {[%emt 0:00:38]} Qb6 {[%emt 0:01:33]} 13. Rb1 {[%emt 0:01:27]} Nh7 {[%emt 0:03:58]} 14. b4 {[%emt 0:06:21]} Na6 {[%emt 0:00:46]} 15. Be3 {[%emt 0:04:36]} Qd8 {[%emt 0:06:59]} 16. f4 {[%emt 0:05:37]} exf4 {[%emt 0:06:04]} 17. Bxf4 {[%emt 0:00:18]} Bg4 {[%emt 0:03:01]} 18. Qd2 {[%emt 0:06:06]} g5 {[%emt 0:04:18]} 19. Be3 {[%emt 0:03:15]} Rc8 {[%emt 0:00:40]} 20. Nb5 {[%emt 0:03:52]} Ra8 {[%emt 0:04:48]} 21. Nxa7 {[%emt 0:03:54]} Nf6 {[%emt 0:04:09]} 22. Nb5 {[%emt 0:02:26]} Re8 {[%emt 0:03:36]} 23. Nec3 {[%emt 0:05:40]} Qe7 {[%emt 0:04:24]} 24. Bd4 {[%emt 0:05:28]} Bd7 {[%emt 0:06:04]} 25. Rfe1 {[%emt 0:05:48]} Bxb5 {[%emt 0:02:06]} 26. Nxb5 {[%emt 0:00:53]} Nc7 {[%emt 0:01:24]} 27. Nc3 {[%emt 0:06:28]} Nd7 {[%emt 0:04:55]} 28. a4 {[%emt 0:05:00]} Ne5 {[%emt 0:00:59]} 29. Bb3 {[%emt 0:02:39]} Na6 {[%emt 0:00:52]} 30. Ne2 {[%emt 0:01:51]} Rac8 {[%emt 0:03:28]} 31. Ng3 {[%emt 0:00:59]} Qf6 {[%emt 0:05:32]} 32. Nf5 {[%emt 0:01:35]} Bh8 {[%emt 0:01:30]} 33. a5 {[%emt 0:03:02]} Qg6 {[%emt 0:01:19]} 34. Ba4 {[%emt 0:01:19]} Nc4 {[%emt 0:03:58]} 35. Qd3 1-0

[Event "GER-chT States Women 2022"]
[Site "Braunfels"]
[Date "2022.06.19"]
[Round "5.28"]
[White "Kiesel, Lara"]
[Black "Grining, Maria"]
[Result "1/2-1/2"]
[ECO "B24"]
[WhiteElo "1737"]
[BlackElo "1759"]
[Annotator "NA RC"]
[PlyCount "69"]
[EventDate "2022.06.15"]
[EventType "swiss"]
[EventCountry "GER"]
[SourceTitle "playchess.com"]
[Source "ChessBase"]
[SourceQuality "1"]
[TimeControl "40/5400+30:1800+30"]

1. e4 {[%emt 0:00:03]} c5 {[%emt 0:00:22]} 2. Nc3 {[%emt 0:00:05]} Nc6 {[%emt 0:01:18]} 3. Bb5 {[%emt 0:00:07]} g6 {[%emt 0:00:49]} 4. Bxc6 {[%emt 0:00:46]} bxc6 {[%emt 0:00:21]} 5. f4 {[%emt 0:00:21]} Bg7 {[%emt 0:01:19]} 6. Nf3 {[%emt 0:00:17]} Nf6 {[%emt 0:07:43]} 7. O-O {[%emt 0:01:01]} d6 {[%emt 0:00:38]} 8. d3 {[%emt 0:00:25]} Rb8 {[%emt 0:01:09]} 9. Qe1 {[%emt 0:01:28]} O-O {[%emt 0:05:05]} 10. h3 {[%emt 0:05:18]} h5 {[%emt 0:01:20]} 11. Ng5 {[%emt 0:09:59]} Nh7 {[%emt 0:03:03]} 12. Nxh7 {[%emt 0:04:14]} Kxh7 {[%emt 0:00:25]} 13. f5 {[%emt 0:00:25]} Rh8 {[%emt 0:09:48]} 14. g4 {[%emt 0:35:22]} hxg4 {[%emt 0:09:06]} 15. Qh4+ {[%emt 0:05:24]} Kg8 {[%emt 0:01:30]} 16. Qxg4 {[%emt 0:00:12]} e5 {[%emt 0:21:04]} 17. Kg2 {[%emt 0:06:59]} Qh4 {[%emt 0:08:54]} 18. b3 {[%emt 0:05:59]} gxf5 {[%emt 0:10:55]} 19. exf5 {[%emt 0:03:48]} Rb4 {[%emt 0:01:32]} 20. Ne4 {[%emt 0:12:26]} Qxg4+ {[%emt 0:09:37]} 21. hxg4 {[%emt 0:00:05]} d5 {[%emt 0:01:05]} 22. Nf2 {[%emt 0:00:54]} e4 {[%emt 0:00:59]} 23. Rb1 {[%emt 0:00:47]} exd3 {[%emt 0:00:47]} 24. cxd3 {[%emt 0:00:15]} Be5 {[%emt 0:02:35]} 25. a3 Rh2+ {[%emt 0:00:46]} 26. Kf3 {[%emt 0:02:46]} Rb8 {[%emt 0:00:20]} 27. Bf4 {[%emt 0:00:50]} Bxf4 {[%emt 0:00:21]} 28. Kxf4 {[%emt 0:00:04]} c4 {[%emt 0:00:20]} 29. Kg3 {[%emt 0:00:28]} Rh6 {[%emt 0:00:31]} 30. bxc4 {[%emt 0:00:20]} Rxb1 {[%emt 0:00:20]} 31. Rxb1 {[%emt 0:00:02]} Ba6 {[%emt 0:00:12]} 32. cxd5 {[%emt 0:00:29]} cxd5 {[%emt 0:00:11]} 33. d4 {[%emt 0:00:16]} Rc6 {[%emt 0:00:33]} 34. Rb8+ {[%emt 0:01:36]} Kg7 {[%emt 0:00:16]} 35. Ra8 1/2-1/2

[Event "GER-chT States Women 2022"]
[Site "Braunfels"]
[Date "2022.06.19"]
[Round "5.29"]
[White "Malachowski, Margrit"]
[Black "Wilmink, Anna"]
[Result "1-0"]
[ECO "A05"]
[WhiteElo "2061"]
[BlackElo "1700"]
[Annotator "NA RC"]
[PlyCount "67"]
[EventDate "2022.06.15"]
[EventType "swiss"]
[EventCountry "GER"]
[SourceTitle "playchess.com"]
[Source "ChessBase"]
[SourceQuality "1"]
[TimeControl "40/5400+30:1800+30"]

1. Nf3 {[%emt 0:00:05]} Nf6 {[%emt 0:00:41]} 2. c4 {[%emt 0:00:08]} c5 {[%emt 0:00:25]} 3. b3 {[%emt 0:00:13]} d5 {[%emt 0:02:17]} 4. e3 {[%emt 0:00:58]} Bf5 {[%emt 0:03:37]} 5. Bb2 {[%emt 0:01:54]} e6 {[%emt 0:02:38]} 6. Nc3 {[%emt 0:10:10]} Nc6 {[%emt 0:01:57]} 7. cxd5 {[%emt 0:03:45]} exd5 {[%emt 0:03:02]} 8. d3 {[%emt 0:03:29]} Be7 {[%emt 0:04:16]} 9. Be2 {[%emt 0:02:26]} O-O {[%emt 0:01:15]} 10. Rc1 {[%emt 0:01:22]} Rc8 {[%emt 0:12:46]} 11. O-O {[%emt 0:01:46]} h6 {[%emt 0:03:17]} 12. Re1 {[%emt 0:04:13]} Re8 {[%emt 0:04:02]} 13. Bf1 {[%emt 0:00:40]} Bf8 {[%emt 0:01:29]} 14. h3 {[%emt 0:05:18]} Bg6 {[%emt 0:04:28]} 15. a3 {[%emt 0:08:34]} a6 {[%emt 0:05:21]} 16. Ne2 {[%emt 0:00:29]} Bd6 {[%emt 0:03:30]} 17. d4 {[%emt 0:10:41]} cxd4 {[%emt 0:07:54]} 18. Nexd4 {[%emt 0:00:57]} Nxd4 {[%emt 0:06:14]} 19. Qxd4 {[%emt 0:03:37]} Re4 {[%emt 0:07:40]} 20. Qd2 {[%emt 0:02:40]} Rxc1 {[%emt 0:01:41]} 21. Rxc1 {[%emt 0:00:10]} Re6 {[%emt 0:00:41]} 22. b4 {[%emt 0:04:07]} Bh5 {[%emt 0:07:07]} 23. Nd4 {[%emt 0:04:02]} Re5 {[%emt 0:02:07]} 24. f4 {[%emt 0:12:49]} Re8 {[%emt 0:03:40]} 25. Nf5 {[%emt 0:01:40]} Bg6 {[%emt 0:02:58]} 26. Nh4 {[%emt 0:06:48]} Be4 {[%emt 0:03:49]} 27. Nf3 {[%emt 0:00:45]} Qe7 {[%emt 0:01:46]} 28. Bd4 {[%emt 0:00:54]} Qe6 {[%emt 0:00:51]} 29. Qf2 {[%emt 0:01:49]} Nh5 {[%emt 0:01:09]} 30. Qh4 {[%emt 0:04:03]} Qg6 {[%emt 0:00:29]} ({Black should try} 30... Bxf3 $11 31. gxf3 g6) 31. Kf2 {[%emt 0:00:47]} f5 {[%emt 0:00:45]} 32. g4 {[%emt 0:00:42]} Be7 $18 {[%emt 0:00:42]} (32... Bxf3 $11 33. gxh5 Bxh5) 33. Qxh5 {[%emt 0:00:03]} Qe6 {[%emt 0:00:43]} 34. Qxe8+ {[%emt 0:00:12]} 1-0

[Event "GER-chT States Women 2022"]
[Site "Braunfels"]
[Date "2022.06.19"]
[Round "5.30"]
[White "Balazs, Kata"]
[Black "Landenberger, Anja Kathrin"]
[Result "1-0"]
[ECO "D00"]
[WhiteElo "1679"]
[BlackElo "1767"]
[Annotator "NA RC"]
[PlyCount "54"]
[EventDate "2022.06.15"]
[EventType "swiss"]
[EventCountry "GER"]
[SourceTitle "playchess.com"]
[Source "ChessBase"]
[SourceQuality "1"]
[TimeControl "40/5400+30:1800+30"]

1. d4 {[%emt 0:00:04]} d5 {[%emt 0:00:33]} 2. Nc3 {[%emt 0:00:11]} Nf6 {[%emt 0:00:14]} 3. Bf4 {[%emt 0:00:12]} c6 {[%emt 0:01:17]} 4. e3 {[%emt 0:01:06]} Bf5 {[%emt 0:02:10]} 5. f3 {[%emt 0:00:45]} h5 {[%emt 0:09:00]} 6. Bd3 {[%emt 0:02:33]} Bxd3 {[%emt 0:05:17]} 7. Qxd3 {[%emt 0:00:08]} e6 {[%emt 0:00:09]} 8. Nge2 {[%emt 0:03:43]} Bd6 {[%emt 0:05:24]} 9. e4 {[%emt 0:07:06]} Bxf4 {[%emt 0:14:34]} 10. Nxf4 {[%emt 0:00:08]} Na6 {[%emt 0:15:46]} 11. O-O-O {[%emt 0:12:03]} Qc7 {[%emt 0:16:22]} 12. Qe3 {[%emt 0:03:39]} O-O-O {[%emt 0:00:59]} 13. a3 {[%emt 0:09:17]} Nd7 {[%emt 0:09:10]} 14. exd5 {[%emt 0:17:26]} cxd5 {[%emt 0:03:32]} 15. Nd3 {[%emt 0:02:59]} Nb6 {[%emt 0:03:01]} 16. Ne5 {[%emt 0:05:41]} Kb8 {[%emt 0:01:06]} 17. Nb5 {[%emt 0:07:04]} Qe7 {[%emt 0:03:42]} 18. Qf4 {[%emt 0:01:15]} Ka8 {[%emt 0:00:20]} 19. Qxf7 {[%emt 0:04:45]} Qg5+ {[%emt 0:00:28]} 20. f4 {[%emt 0:00:22]} Qxg2 {[%emt 0:00:26]} 21. Qxe6 {[%emt 0:04:00]} Rc8 {[%emt 0:03:01]} 22. c3 {[%emt 0:03:50]} Na4 {[%emt 0:01:10]} 23. Nd3 {[%emt 0:00:38]} Rc6 {[%emt 0:00:54]} 24. Qd7 {[%emt 0:01:48]} Rhc8 {[%emt 0:00:27]} 25. Rhg1 {[%emt 0:03:00]} Qe2 {[%emt 0:01:54]} 26. Rxg7 {[%emt 0:02:17]} Rb8 {[%emt 0:00:59]} 27. Qxd5 {[%emt 0:01:03]} Rf6 1-0

[Event "GER-chT States Women 2022"]
[Site "Braunfels"]
[Date "2022.06.19"]
[Round "5.31"]
[White "Kuehnel, Jutta"]
[Black "Grabowski, Petra"]
[Result "1/2-1/2"]
[ECO "C01"]
[WhiteElo "1547"]
[BlackElo "1635"]
[Annotator "NA RC"]
[PlyCount "44"]
[EventDate "2022.06.15"]
[EventType "swiss"]
[EventCountry "GER"]
[SourceTitle "playchess.com"]
[Source "ChessBase"]
[SourceQuality "1"]
[TimeControl "40/5400+30:1800+30"]

1. e4 {[%emt 0:00:00]} e6 {[%emt 0:00:04]} 2. d4 {[%emt 0:00:07]} d5 {[%emt 0:00:05]} 3. exd5 {[%emt 0:00:38]} exd5 {[%emt 0:00:10]} 4. Nf3 {[%emt 0:00:54]} Nf6 {[%emt 0:00:05]} 5. Be2 {[%emt 0:03:58]} Bd6 {[%emt 0:01:07]} 6. Bg5 {[%emt 0:08:26]} Bg4 {[%emt 0:03:04]} 7. h3 Bh5 {[%emt 0:04:18]} 8. Nc3 {[%emt 0:10:12]} c6 {[%emt 0:00:48]} 9. Qd3 {[%emt 0:02:29]} Nbd7 {[%emt 0:04:41]} 10. Nh4 {[%emt 0:07:57]} Bxe2 {[%emt 0:02:33]} 11. Qxe2+ {[%emt 0:01:55]} Qe7 {[%emt 0:01:50]} 12. Nf5 {[%emt 0:03:31]} Qxe2+ {[%emt 0:00:49]} 13. Kxe2 {[%emt 0:03:00]} Bf8 {[%emt 0:02:14]} 14. Rhe1 {[%emt 0:04:17]} O-O-O {[%emt 0:01:42]} 15. Kd3 {[%emt 0:02:22]} Re8 {[%emt 0:08:51]} 16. Bf4 {[%emt 0:04:05]} g6 {[%emt 0:04:17]} 17. Rxe8+ {[%emt 0:08:24]} Nxe8 {[%emt 0:00:10]} 18. Re1 {[%emt 0:02:00]} Kd8 {[%emt 0:07:28]} 19. Nh6 {[%emt 0:07:57]} Bxh6 {[%emt 0:03:18]} 20. Bxh6 {[%emt 0:00:04]} Rg8 {[%emt 0:04:50]} 21. Bf4 {[%emt 0:01:31]} g5 {[%emt 0:00:44]} 22. Bh2 {[%emt 0:00:33]} f5 {[%emt 0:05:21]} 1/2-1/2

[Event "GER-chT States Women 2022"]
[Site "Braunfels"]
[Date "2022.06.19"]
[Round "5.32"]
[White "Hielscher, Ursula"]
[Black "Chung, Simone"]
[Result "1-0"]
[ECO "D55"]
[WhiteElo "1717"]
[BlackElo "1458"]
[Annotator "NA RC"]
[PlyCount "69"]
[EventDate "2022.06.15"]
[EventType "swiss"]
[EventCountry "GER"]
[SourceTitle "playchess.com"]
[Source "ChessBase"]
[SourceQuality "1"]
[TimeControl "40/5400+30:1800+30"]

1. d4 {[%emt 0:00:03]} d5 {[%emt 0:00:07]} 2. c4 {[%emt 0:00:03]} e6 {[%emt 0:00:09]} 3. Nc3 {[%emt 0:00:04]} Nf6 {[%emt 0:00:28]} 4. Bg5 {[%emt 0:00:11]} Be7 {[%emt 0:00:23]} 5. e3 {[%emt 0:00:11]} O-O {[%emt 0:00:54]} 6. Nf3 {[%emt 0:00:04]} c6 {[%emt 0:03:45]} 7. Be2 {[%emt 0:01:04]} dxc4 {[%emt 0:00:54]} 8. Bxc4 {[%emt 0:00:05]} Nbd7 {[%emt 0:00:20]} 9. O-O {[%emt 0:00:11]} Nb6 {[%emt 0:00:19]} 10. Bd3 {[%emt 0:01:12]} Nbd5 {[%emt 0:03:37]} 11. e4 {[%emt 0:02:18]} Nb6 {[%emt 0:03:59]} 12. Qc2 {[%emt 0:01:05]} h6 {[%emt 0:01:42]} 13. Bh4 {[%emt 0:00:53]} Re8 {[%emt 0:04:00]} 14. Rfd1 {[%emt 0:03:35]} Bd7 {[%emt 0:11:27]} 15. Rac1 {[%emt 0:05:25]} Rc8 {[%emt 0:07:10]} 16. a4 {[%emt 0:10:15]} c5 {[%emt 0:07:19]} 17. dxc5 {[%emt 0:05:25]} Rxc5 {[%emt 0:02:54]} 18. Bb5 {[%emt 0:02:45]} a6 {[%emt 0:05:01]} 19. Bxd7 {[%emt 0:00:44]} Nfxd7 {[%emt 0:01:19]} 20. Bg3 {[%emt 0:03:28]} Qc8 {[%emt 0:04:12]} 21. b4 {[%emt 0:04:57]} Rc6 {[%emt 0:05:37]} 22. Nd4 {[%emt 0:02:29]} Rc4 {[%emt 0:04:10]} 23. a5 {[%emt 0:15:10]} Bxb4 {[%emt 0:08:28]} 24. axb6 {[%emt 0:00:32]} Rxc3 {[%emt 0:02:47]} 25. Qb2 {[%emt 0:02:24]} Rxc1 {[%emt 0:03:10]} 26. Rxc1 {[%emt 0:02:40]} Bc5 {[%emt 0:03:54]} 27. Nb3 {[%emt 0:01:02]} Qc6 {[%emt 0:01:17]} 28. Qc3 {[%emt 0:04:44]} Rc8 {[%emt 0:00:40]} 29. Qd3 {[%emt 0:05:12]} Qa4 {[%emt 0:07:21]} 30. h3 {[%emt 0:13:03]} Kf8 {[%emt 0:04:56]} 31. Bd6+ {[%emt 0:02:12]} Ke8 {[%emt 0:01:37]} 32. Bxc5 {[%emt 0:01:19]} Ne5 {[%emt 0:00:14]} 33. Qd6 {[%emt 0:01:21]} Nc6 {[%emt 0:00:19]} 34. Qf8+ {[%emt 0:00:31]} Kd7 35. Rd1+ {[%emt 0:00:54]} 1-0

[Event "GER-chT States Women 2022"]
[Site "Braunfels"]
[Date "2022.06.19"]
[Round "5.33"]
[White "Wagner, Margarethe"]
[Black "Krasnopeyeva, Julia"]
[Result "1-0"]
[ECO "B42"]
[WhiteElo "1902"]
[BlackElo "1939"]
[Annotator "NA RC"]
[PlyCount "43"]
[EventDate "2022.06.15"]
[EventType "swiss"]
[EventCountry "GER"]
[SourceTitle "playchess.com"]
[Source "ChessBase"]
[SourceQuality "1"]
[TimeControl "40/5400+30:1800+30"]

1. e4 {[%emt 0:00:03]} c5 {[%emt 0:00:06]} 2. Nf3 {[%emt 0:00:13]} e6 {[%emt 0:00:12]} 3. d4 {[%emt 0:00:09]} cxd4 {[%emt 0:00:06]} 4. Nxd4 {[%emt 0:00:08]} a6 {[%emt 0:00:09]} 5. Bd3 {[%emt 0:00:32]} Qc7 {[%emt 0:03:58]} 6. O-O {[%emt 0:00:55]} Nf6 {[%emt 0:01:10]} 7. Qe2 {[%emt 0:00:41]} h5 {[%emt 0:04:08]} 8. h3 {[%emt 0:07:39]} h4 {[%emt 0:02:36]} 9. c4 {[%emt 0:09:06]} Nc6 {[%emt 0:03:35]} 10. Nxc6 {[%emt 0:03:55]} dxc6 {[%emt 0:02:58]} 11. e5 {[%emt 0:11:10]} Nh5 {[%emt 0:01:27]} 12. Kh1 {[%emt 0:06:54]} Be7 {[%emt 0:07:34]} 13. Nc3 {[%emt 0:03:54]} c5 {[%emt 0:02:03]} 14. a4 {[%emt 0:05:30]} Bd7 {[%emt 0:01:37]} 15. Bd2 {[%emt 0:03:33]} O-O-O {[%emt 0:03:26]} 16. Be4 {[%emt 0:02:44]} g5 {[%emt 0:05:38]} 17. Nb5 {[%emt 0:14:01]} axb5 {[%emt 0:21:04]} 18. axb5 {[%emt 0:00:10]} Bxb5 {[%emt 0:02:25]} 19. cxb5 {[%emt 0:01:18]} Kd7 {[%emt 0:00:25]} 20. Ba5 {[%emt 0:04:41]} b6 {[%emt 0:00:26]} 21. Bc6+ {[%emt 0:00:34]} Kc8 {[%emt 0:01:02]} 22. Bc3 1-0

[Event "GER-chT States Women 2022"]
[Site "Braunfels"]
[Date "2022.06.19"]
[Round "5.34"]
[White "Mader, Lena"]
[Black "Wagner, Victoria"]
[Result "1-0"]
[ECO "A13"]
[WhiteElo "1789"]
[BlackElo "1806"]
[Annotator "NA RC"]
[PlyCount "118"]
[EventDate "2022.06.15"]
[EventType "swiss"]
[EventCountry "GER"]
[SourceTitle "playchess.com"]
[Source "ChessBase"]
[SourceQuality "1"]
[TimeControl "40/5400+30:1800+30"]

1. c4 {[%emt 0:00:01]} e6 {[%emt 0:00:05]} 2. g3 {[%emt 0:00:11]} d5 {[%emt 0:00:11]} 3. Bg2 {[%emt 0:00:06]} Nf6 {[%emt 0:00:51]} 4. Nf3 {[%emt 0:00:20]} Be7 {[%emt 0:00:37]} 5. b3 {[%emt 0:00:54]} d4 {[%emt 0:03:55]} 6. O-O {[%emt 0:02:00]} O-O {[%emt 0:00:13]} 7. Bb2 {[%emt 0:00:31]} Nc6 {[%emt 0:00:37]} 8. e3 {[%emt 0:03:01]} e5 {[%emt 0:01:29]} 9. exd4 {[%emt 0:03:41]} exd4 {[%emt 0:00:06]} 10. d3 {[%emt 0:03:17]} Bf5 {[%emt 0:02:56]} 11. a3 {[%emt 0:01:10]} a5 {[%emt 0:00:34]} 12. Re1 {[%emt 0:02:05]} Qd7 {[%emt 0:11:36]} 13. Qc2 {[%emt 0:01:23]} Rad8 {[%emt 0:11:50]} 14. Nbd2 {[%emt 0:00:27]} Bc5 {[%emt 0:06:29]} 15. Ne5 {[%emt 0:05:37]} Nxe5 {[%emt 0:01:59]} 16. Rxe5 {[%emt 0:00:01]} b6 {[%emt 0:00:18]} 17. Rae1 {[%emt 0:06:23]} Bd6 {[%emt 0:05:00]} 18. R5e2 {[%emt 0:00:44]} c5 {[%emt 0:02:05]} 19. Bc1 {[%emt 0:05:25]} Rfe8 {[%emt 0:04:04]} 20. Ne4 {[%emt 0:03:51]} Bxe4 {[%emt 0:13:37]} 21. Bxe4 {[%emt 0:00:02]} Nxe4 {[%emt 0:00:57]} 22. Rxe4 {[%emt 0:00:01]} f5 {[%emt 0:02:53]} 23. Rxe8+ {[%emt 0:03:23]} Rxe8 {[%emt 0:00:11]} 24. Qd1 {[%emt 0:00:46]} Re6 {[%emt 0:04:10]} 25. Kg2 {[%emt 0:01:13]} Qb7+ {[%emt 0:02:03]} 26. f3 {[%emt 0:00:47]} Qe7 {[%emt 0:01:42]} 27. Kf2 {[%emt 0:01:57]} f4 {[%emt 0:09:06]} 28. Re4 {[%emt 0:05:10]} Rxe4 {[%emt 0:02:08]} 29. fxe4 {[%emt 0:00:01]} Qg5 {[%emt 0:07:19]} 30. Kg2 {[%emt 0:02:49]} f3+ {[%emt 0:00:32]} 31. Kf2 {[%emt 0:01:25]} Qh5 {[%emt 0:00:44]} 32. h4 {[%emt 0:01:59]} Bxg3+ {[%emt 0:01:30]} 33. Kxg3 {[%emt 0:00:01]} Qg6+ {[%emt 0:00:11]} 34. Bg5 {[%emt 0:00:06]} h6 {[%emt 0:00:10]} 35. Qxf3 {[%emt 0:02:31]} hxg5 {[%emt 0:00:18]} 36. h5 {[%emt 0:02:05]} Qf6 {[%emt 0:03:07]} 37. Qf5 {[%emt 0:09:11]} Qd6+ {[%emt 0:02:21]} 38. e5 {[%emt 0:01:29]} Qc6 {[%emt 0:00:41]} 39. Qf3 {[%emt 0:08:44]} Qe8 {[%emt 0:00:37]} 40. Qd5+ {[%emt 0:02:21]} Kh7 {[%emt 0:00:31]} 41. Kg4 {[%emt 0:30:39]} a4 {[%emt 0:05:42]} 42. bxa4 {[%emt 0:00:00]} Qxa4 {[%emt 0:00:08]} 43. Kxg5 {[%emt 0:00:00]} Qxa3 {[%emt 0:01:06]} 44. Qe4+ {[%emt 0:00:00]} Kh8 {[%emt 0:01:45]} 45. Kg6 {[%emt 0:00:00]} Qa1 {[%emt 0:02:20]} 46. Qg4 {[%emt 0:00:00]} Qa8 {[%emt 0:00:34]} 47. Qf5 {[%emt 0:00:00]} Qg2+ {[%emt 0:06:46]} 48. Kf7 {[%emt 0:00:00]} Qb7+ {[%emt 0:00:48]} 49. Ke8 {[%emt 0:00:00]} Qb8+ {[%emt 0:01:13]} 50. Kd7 {[%emt 0:00:00]} b5 {[%emt 0:01:48]} 51. cxb5 {[%emt 0:00:00]} Qxb5+ {[%emt 0:01:03]} 52. Kd6 {[%emt 0:00:00]} c4 {[%emt 0:02:00]} 53. dxc4 {[%emt 0:01:25]} Qxc4 {[%emt 0:00:32]} 54. e6 {[%emt 0:00:16]} Qa6+ {[%emt 0:07:06]} 55. Ke5 {[%emt 0:01:42]} d3 {[%emt 0:01:51]} 56. e7 {[%emt 0:02:02]} Qa5+ {[%emt 0:01:33]} 57. Ke6 {[%emt 0:00:21]} Qe1+ {[%emt 0:02:04]} 58. Qe5 {[%emt 0:06:54]} d2 {[%emt 0:00:12]} 59. e8=Q+ {[%emt 0:00:08]} Kh7 1-0

[Event "GER-chT States Women 2022"]
[Site "Braunfels"]
[Date "2022.06.19"]
[Round "5.35"]
[White "Albayrak, Nese Pinar"]
[Black "Bazzazi, Elnaz"]
[Result "1-0"]
[ECO "C65"]
[WhiteElo "1683"]
[BlackElo "1749"]
[Annotator "NA RC"]
[PlyCount "85"]
[EventDate "2022.06.15"]
[EventType "swiss"]
[EventCountry "GER"]
[SourceTitle "playchess.com"]
[Source "ChessBase"]
[SourceQuality "1"]
[TimeControl "40/5400+30:1800+30"]

1. e4 {[%emt 0:00:03]} e5 {[%emt 0:00:12]} 2. Nf3 {[%emt 0:00:05]} Nc6 {[%emt 0:00:07]} 3. Bb5 {[%emt 0:00:05]} Bc5 {[%emt 0:00:58]} 4. O-O {[%emt 0:00:59]} Nf6 {[%emt 0:00:16]} 5. d3 {[%emt 0:03:26]} d6 {[%emt 0:01:03]} 6. c3 {[%emt 0:00:20]} O-O {[%emt 0:04:37]} 7. h3 {[%emt 0:00:21]} d5 {[%emt 0:03:38]} 8. exd5 {[%emt 0:08:30]} Qxd5 {[%emt 0:01:26]} 9. Bxc6 {[%emt 0:02:50]} bxc6 {[%emt 0:01:24]} 10. Re1 {[%emt 0:03:14]} e4 {[%emt 0:15:27]} 11. dxe4 {[%emt 0:03:24]} Nxe4 {[%emt 0:00:21]} 12. Nd4 {[%emt 0:07:07]} Rd8 {[%emt 0:11:28]} 13. Qf3 {[%emt 0:24:17]} f5 {[%emt 0:05:35]} 14. Be3 {[%emt 0:03:51]} Rb8 {[%emt 0:02:42]} 15. b3 {[%emt 0:05:41]} Bd6 {[%emt 0:03:13]} 16. Bf4 {[%emt 0:06:47]} c5 {[%emt 0:02:46]} 17. Ne2 {[%emt 0:03:58]} Bb7 {[%emt 0:02:19]} 18. c4 {[%emt 0:03:02]} Qf7 {[%emt 0:01:29]} 19. Nbc3 {[%emt 0:03:36]} g5 {[%emt 0:06:12]} 20. Bh2 {[%emt 0:08:45]} g4 {[%emt 0:07:22]} 21. hxg4 {[%emt 0:01:13]} Bxh2+ {[%emt 0:03:32]} 22. Kxh2 {[%emt 0:00:23]} Qf6 {[%emt 0:01:37]} 23. Qxf5 {[%emt 0:02:38]} Qh6+ {[%emt 0:03:15]} 24. Kg1 {[%emt 0:00:44]} Rf8 {[%emt 0:00:31]} 25. Qh5 {[%emt 0:01:24]} Qf6 {[%emt 0:05:56]} 26. Nxe4 {[%emt 0:00:31]} Bxe4 {[%emt 0:00:02]} 27. f3 {[%emt 0:01:13]} Bb7 {[%emt 0:03:23]} 28. Qxc5 {[%emt 0:00:32]} Rbe8 {[%emt 0:00:34]} 29. Ng3 {[%emt 0:01:15]} Qc3 {[%emt 0:05:31]} 30. Ne4 {[%emt 0:02:01]} Bxe4 {[%emt 0:01:45]} 31. fxe4 {[%emt 0:00:01]} Re5 {[%emt 0:00:59]} 32. Qe3 {[%emt 0:01:58]} Qb2 {[%emt 0:01:46]} 33. Qe2 {[%emt 0:00:40]} Qd4+ {[%emt 0:00:23]} 34. Qe3 {[%emt 0:00:10]} Qb2 {[%emt 0:00:16]} 35. Rad1 {[%emt 0:01:35]} Rxe4 {[%emt 0:00:40]} 36. Qg5+ {[%emt 0:00:42]} Kh8 {[%emt 0:00:31]} 37. Rxe4 {[%emt 0:00:21]} Qc2 {[%emt 0:02:04]} 38. Qe5+ {[%emt 0:00:40]} Kg8 {[%emt 0:00:02]} 39. Qg5+ {[%emt 0:00:08]} Kh8 {[%emt 0:00:08]} 40. Rde1 {[%emt 0:01:11]} Qf2+ {[%emt 0:02:51]} 41. Kh1 {[%emt 0:02:09]} Rg8 {[%emt 0:04:03]} 42. Qf4 {[%emt 0:07:02]} Qb6 {[%emt 0:03:22]} 43. Re7 {[%emt 0:01:17]} 1-0